bitfinex-derivatives/quotes_BTCF0:USTF0_20250919
["timestamp","ask_amount","ask_price","bid_price","bid_amount"]
[1758294430702,0.9628807,115710.0,115700.0,0.50662603]
[1758294430902,0.9628807,115710.0,115700.0,0.82439506]
[1758294431511,0.9628807,115710.0,115700.0,1.24507578]
[1758294431712,0.9628807,115710.0,115700.0,0.82439506]
[1758294431904,0.9628807,115710.0,115700.0,1.2479325]
[1758294432099,0.9628807,115710.0,115700.0,0.46359506]
[1758294432309,0.9764407,115710.0,115700.0,0.46359506]
[1758294432505,0.9764407,115710.0,115700.0,0.37720706]
[1758294432714,0.9764407,115710.0,115700.0,0.11363706]
[1758294433105,0.9764407,115710.0,115700.0,0.20002506]
[1758294433509,0.9764407,115710.0,115700.0,0.18012703]
[1758294433919,0.9628807,115710.0,115700.0,0.19369703]
[1758294434418,0.9627207,115710.0,115700.0,0.86723447]
[1758294434606,1.76061814,115710.0,115700.0,0.07076903]
[1758294434808,1.64981814,115710.0,115700.0,0.07076903]
[1758294435115,1.64981814,115710.0,115680.0,0.01858483]
[1758294435116,0.1224755,115690.0,115680.0,0.01858483]
[1758294435305,0.0864103,115670.0,115660.0,0.15858089]
[1758294435509,0.1090303,115670.0,115660.0,0.53877441]
[1758294435711,0.9576303,115670.0,115660.0,0.45235661]
[1758294435908,1.39472774,115670.0,115660.0,0.07798661]
[1758294436411,0.54612774,115670.0,115660.0,0.07798661]
[1758294436714,0.9711903,115670.0,115660.0,0.09155661]
[1758294437305,0.9576303,115670.0,115660.0,0.85151185]
[1758294437505,0.9575903,115670.0,115660.0,0.85151185]
[1758294437713,0.9575903,115670.0,115660.0,0.76509405]
[1758294437908,0.1090303,115670.0,115660.0,0.85151185]
[1758294438210,0.0061,115670.0,115660.0,1.28274967]
[1758294438606,0.0011,115670.0,115660.0,1.28174967]
[1758294438804,0.0061,115670.0,115660.0,1.28174967]
[1758294441014,0.0061,115670.0,115660.0,0.85821223]
[1758294441413,0.0061,115670.0,115660.0,1.28174967]
[1758294443514,0.0925102,115670.0,115660.0,1.28174967]
[1758294443710,0.0925102,115670.0,115660.0,0.85821223]
[1758294443924,1.39971764,115670.0,115660.0,0.12445443]
[1758294444113,1.39971764,115670.0,115660.0,0.14560443]
[1758294444313,1.39971764,115670.0,115660.0,0.12621361]
[1758294444513,2.01051764,115670.0,115660.0,0.10605782]
[1758294445817,1.5869802,115670.0,115660.0,0.10605782]
[1758294446015,2.01051764,115670.0,115660.0,0.10605782]
[1758294446519,2.01051764,115670.0,115660.0,0.08490782]
[1758294446921,1.5869802,115670.0,115660.0,0.10605782]
[1758294447213,2.01051764,115670.0,115660.0,0.10605782]
[1758294448017,1.5869802,115670.0,115660.0,0.08490782]
[1758294448207,2.37131764,115670.0,115660.0,0.08490782]
[1758294448810,1.0995002,115670.0,115660.0,0.10605782]
[1758294449019,1.52303764,115670.0,115660.0,0.10605782]
[1758294449214,1.9476202,115670.0,115660.0,0.10605782]
[1758294449421,1.5868202,115670.0,115660.0,0.10605782]
[1758294449623,0.0864176,115660.0,115650.0,0.02044246]
[1758294449824,0.4816376,115660.0,115650.0,0.04159246]
[1758294450115,0.0864176,115660.0,115650.0,0.12801756]
[1758294450323,1.3297576,115660.0,115650.0,0.04159246]
[1758294450813,1.3307576,115660.0,115650.0,0.04159246]
[1758294451322,0.4826376,115660.0,115650.0,0.12801756]
[1758294451513,0.001,115660.0,115650.0,0.12801756]
[1758294452322,0.1218376,115660.0,115650.0,0.12801756]
[1758294452508,0.1218376,115660.0,115650.0,0.13301756]
[1758294452509,0.0924176,115660.0,115650.0,0.13301756]
[1758294452917,0.0924176,115660.0,115650.0,0.20380255]
[1758294453121,0.1268376,115660.0,115650.0,0.20380255]
[1758294453325,0.1268376,115660.0,115650.0,0.11737745]
[1758294453627,0.1268376,115660.0,115650.0,0.20380245]
[1758294453825,0.1268376,115660.0,115650.0,0.56460245]
[1758294454417,0.1268376,115660.0,115650.0,0.20380245]
[1758294455222,0.55037504,115660.0,115650.0,0.20380245]
[1758294455423,0.1268376,115660.0,115650.0,0.20380245]
[1758294455622,0.006,115660.0,115650.0,0.20380245]
[1758294455822,0.006,115660.0,115650.0,0.56460245]
[1758294456030,1.27959961,115670.0,115660.0,0.1075675]
[1758294456220,1.29246961,115670.0,115660.0,0.1075675]
[1758294456416,0.93445,115670.0,115660.0,0.4793875]
[1758294456621,0.08641,115670.0,115660.0,0.4793875]
[1758294456822,0.08641,115670.0,115660.0,0.1185875]
[1758294457021,0.08641,115670.0,115660.0,0.4793875]
[1758294457524,0.08741,115670.0,115660.0,0.4813875]
[1758294458125,0.10896,115670.0,115660.0,0.4813875]
[1758294458326,0.001,115670.0,115660.0,1.15492494]
[1758294458728,0.001,115670.0,115660.0,0.7313875]
[1758294458924,0.09241,115670.0,115660.0,0.7403875]
[1758294459118,0.11396,115670.0,115660.0,0.7403875]
[1758294459322,0.11396,115670.0,115660.0,0.4903875]
[1758294460633,0.12683,115670.0,115660.0,0.4903875]
[1758294460823,0.12683,115670.0,115660.0,0.4793675]
[1758294461129,0.55036744,115670.0,115660.0,0.4793675]
[1758294461534,0.91116744,115670.0,115660.0,0.03215]
[1758294461939,1.16116744,115670.0,115660.0,0.011]
[1758294464239,1.52196744,115670.0,115660.0,0.011]
[1758294466736,0.1208378,115660.0,115650.0,0.06952]
[1758294466936,0.1208452,115650.0,115640.0,0.01874969]
[1758294467234,0.4816452,115650.0,115640.0,0.01874969]
[1758294467436,1.75314264,115650.0,115640.0,0.01874969]
[1758294468031,0.90518264,115650.0,115640.0,0.01874969]
[1758294468232,1.75314264,115650.0,115640.0,4e-05]
[1758294468432,1.3296052,115650.0,115640.0,4e-05]
[1758294468633,1.75314264,115650.0,115640.0,4e-05]
[1758294469228,1.75314264,115650.0,115640.0,0.06878457]
[1758294469430,1.75814264,115650.0,115640.0,0.07078457]
[1758294469940,1.3346052,115650.0,115640.0,0.07078457]
[1758294470140,0.91018264,115650.0,115640.0,0.07078457]
[1758294470334,0.92778907,115650.0,115640.0,0.07078457]
[1758294470533,1.35225163,115650.0,115640.0,0.09193457]
[1758294470735,1.77678907,115650.0,115640.0,0.07078457]
[1758294470937,0.50525163,115650.0,115640.0,0.09193457]
[1758294471130,1.77782907,115650.0,115640.0,0.09193457]
[1758294471337,0.92878907,115650.0,115640.0,0.09193457]
[1758294471638,1.77782907,115650.0,115640.0,0.09193457]
[1758294471836,1.35429163,115650.0,115640.0,0.09193457]
[1758294472032,1.77782907,115650.0,115640.0,0.09193457]
[1758294472239,1.35429163,115650.0,115640.0,0.09193457]
[1758294472435,1.77782907,115650.0,115640.0,0.09193457]
[1758294473042,1.35429163,115650.0,115640.0,0.09193457]
[1758294473339,0.92878907,115650.0,115640.0,0.09193457]
[1758294473841,0.91118264,115650.0,115640.0,0.17836717]
[1758294474037,1.3382452,115650.0,115640.0,0.17836717]
[1758294474240,1.76178264,115650.0,115640.0,0.17836717]
[1758294474432,1.76174264,115650.0,115640.0,0.17836717]
[1758294474940,0.40122,115650.0,115640.0,0.17836717]
[1758294475143,0.8149655,115650.0,115640.0,0.43622717]
[1758294475344,0.90518944,115660.0,115650.0,0.1091951]
[1758294475645,0.90508944,115660.0,115650.0,0.1091951]
[1758294475850,0.90518204,115670.0,115660.0,0.0864177]
[1758294476147,1.75800204,115670.0,115660.0,0.1091877]
[1758294476344,1.75800204,115670.0,115660.0,0.02277]
[1758294477135,1.75800204,115670.0,115660.0,0.02477]
[1758294477340,0.4865446,115670.0,115660.0,0.02477]
[1758294477640,1.75193359,115670.0,115660.0,0.1121881]
[1758294477839,0.47503615,115670.0,115660.0,0.1252081]
[1758294478041,1.31565615,115670.0,115660.0,0.1252081]
[1758294478244,1.73919359,115670.0,115660.0,0.1252081]
[1758294478449,1.32839615,115670.0,115660.0,0.1252081]
[1758294478852,1.75273359,115670.0,115660.0,0.1252081]
[1758294479148,1.31645615,115670.0,115660.0,0.1252081]
[1758294479359,1.74015359,115670.0,115660.0,0.1252081]
[1758294479564,1.31661615,115670.0,115660.0,0.1252081]
[1758294480149,1.74015359,115670.0,115660.0,0.1252081]
[1758294480749,1.75360359,115670.0,115660.0,0.1252081]
[1758294480953,1.74190984,115670.0,115660.0,0.1121881]
[1758294481254,1.74190984,115670.0,115660.0,0.04595537]
[1758294481255,1.3183724,115670.0,115660.0,0.04595537]
[1758294481449,1.74190984,115670.0,115660.0,0.04595537]
[1758294481950,0.4506024,115670.0,115660.0,0.39559347]
[1758294482251,0.1231281,115660.0,115650.0,0.0001]
[1758294482446,0.1231356,115650.0,115640.0,0.04211481]
[1758294482644,1.76135304,115650.0,115640.0,0.04201481]
[1758294483047,1.3378156,115650.0,115640.0,0.04201481]
[1758294483243,1.76135304,115650.0,115640.0,0.04201481]
[1758294483444,2.43489048,115650.0,115640.0,4e-05]
[1758294483644,1.5878156,115650.0,115640.0,4e-05]
[1758294483844,2.01135304,115650.0,115640.0,4e-05]
[1758294485551,1.5878156,115650.0,115640.0,4e-05]
[1758294485753,2.01135304,115650.0,115640.0,4e-05]
[1758294485946,2.01735304,115650.0,115640.0,0.00204]
[1758294486143,0.7399356,115650.0,115640.0,0.00204]
[1758294486447,2.01235304,115650.0,115640.0,4e-05]
[1758294486753,1.76735304,115650.0,115640.0,0.00204]
[1758294486946,1.76735304,115650.0,115640.0,0.02409]
[1758294487152,1.76715304,115650.0,115640.0,0.02409]
[1758294487546,0.91347304,115650.0,115640.0,0.02409]
[1758294487750,1.76715304,115650.0,115640.0,0.27409]
[1758294487952,0.91347304,115650.0,115640.0,0.360523]
[1758294488153,1.76671304,115650.0,115640.0,0.360523]
[1758294488353,1.3431756,115650.0,115640.0,0.360523]
[1758294488545,1.3431756,115650.0,115640.0,0.373743]
[1758294488742,1.3431756,115650.0,115640.0,0.360523]
[1758294488944,1.76671304,115650.0,115640.0,0.27409]
[1758294489452,1.76671304,115650.0,115640.0,0.25204]
[1758294489657,1.76671304,115650.0,115640.0,0.00204]
[1758294490558,1.3431756,115650.0,115640.0,0.00204]
[1758294490748,1.76671304,115650.0,115640.0,0.00204]
[1758294491358,0.4899356,115650.0,115640.0,0.02409]
[1758294491655,1.76671304,115650.0,115640.0,0.02409]
[1758294492059,1.76671304,115650.0,115640.0,0.00204]
[1758294493754,1.76455701,115650.0,115640.0,0.00204]
[1758294494352,2.01455701,115650.0,115640.0,0.00204]
[1758294495152,0.123143,115640.0,115630.0,0.02514]
[1758294495454,0.90532441,115640.0,115630.0,0.02504]
[1758294496154,0.483943,115640.0,115630.0,0.02504]
[1758294496360,0.90532441,115640.0,115630.0,0.02504]
[1758294496560,0.484943,115640.0,115630.0,0.02504]
[1758294496757,1.75688441,115640.0,115630.0,0.02504]
[1758294497560,1.76188441,115640.0,115630.0,0.02604]
[1758294497761,1.340503,115640.0,115630.0,0.02604]
[1758294497963,1.76188441,115640.0,115630.0,0.02604]
[1758294499659,0.489943,115640.0,115630.0,0.02604]
[1758294499860,1.339743,115640.0,115630.0,0.02604]
[1758294500064,0.91132441,115640.0,115630.0,0.02604]
[1758294500264,0.489943,115640.0,115630.0,0.02604]
[1758294500563,1.76036441,115640.0,115630.0,0.02604]
[1758294501864,1.75936441,115640.0,115630.0,0.02604]
[1758294502163,1.76036441,115640.0,115630.0,0.02604]
[1758294502566,1.338983,115640.0,115630.0,0.02604]
[1758294503062,1.76036441,115640.0,115630.0,0.02604]
[1758294503454,1.75936441,115640.0,115630.0,0.02604]
[1758294506659,1.337983,115640.0,115630.0,0.02604]
[1758294506967,1.75936441,115640.0,115630.0,0.02604]
[1758294507769,1.337743,115640.0,115630.0,0.02604]
[1758294507970,1.75912441,115640.0,115630.0,0.02604]
[1758294508165,0.91032441,115640.0,115630.0,0.02604]
[1758294508359,1.75968441,115640.0,115630.0,0.02604]
[1758294508668,1.338303,115640.0,115630.0,0.02604]
[1758294508854,0.488943,115640.0,115630.0,0.02604]
[1758294509052,1.75964441,115640.0,115630.0,0.04894]
[1758294509266,1.75964441,115640.0,115630.0,0.02604]
[1758294509959,1.338263,115640.0,115630.0,0.02604]
[1758294510156,1.75964441,115640.0,115630.0,0.02604]
[1758294512375,0.91032441,115640.0,115630.0,0.02604]
[1758294512560,1.75952441,115640.0,115630.0,0.02604]
[1758294512757,0.91032441,115640.0,115630.0,0.02604]
[1758294512971,1.75944441,115640.0,115630.0,0.02604]
[1758294514469,0.91032441,115640.0,115630.0,0.02604]
[1758294514667,1.75924441,115640.0,115630.0,0.02604]
[1758294514864,1.337863,115640.0,115630.0,0.04894]
[1758294515064,1.75924441,115640.0,115630.0,0.04894]
[1758294515264,0.91032441,115640.0,115630.0,0.04894]
[1758294515664,1.75900441,115640.0,115630.0,0.04894]
[1758294516066,1.75900441,115640.0,115630.0,0.1353804]
[1758294516269,1.337623,115640.0,115630.0,0.1353804]
[1758294516568,0.488943,115640.0,115630.0,0.3853804]
[1758294516773,1.25119,115640.0,115630.0,0.3853804]
[1758294517072,1.23774,115640.0,115630.0,0.3981604]
[1758294517471,1.3241727,115640.0,115630.0,0.3981604]
[1758294517662,1.3369227,115640.0,115630.0,0.29894]
[1758294517858,1.67626865,115640.0,115630.0,0.29894]
[1758294518875,1.3369227,115640.0,115630.0,0.3853802]
[1758294519071,1.67626865,115640.0,115630.0,0.3853802]
[1758294519370,1.67626865,115640.0,115630.0,0.04894]
[1758294519774,1.3369227,115640.0,115630.0,0.04894]
[1758294520065,1.67626865,115640.0,115630.0,0.02604]
[1758294520271,1.3369227,115640.0,115630.0,0.02604]
[1758294520570,1.67626865,115640.0,115630.0,0.02604]
[1758294523963,0.82758865,115640.0,115630.0,0.02604]
[1758294524472,1.67854865,115640.0,115630.0,0.04894]
[1758294525170,1.67854865,115640.0,115630.0,0.02604]
[1758294525678,1.67838865,115640.0,115630.0,0.02604]
[1758294526780,1.3390427,115640.0,115630.0,0.02604]
[1758294526981,1.67838865,115640.0,115630.0,0.02604]
[1758294527279,0.82758865,115640.0,115630.0,0.02604]
[1758294527479,1.67714865,115640.0,115630.0,0.02604]
[1758294527681,1.67714865,115640.0,115630.0,0.04894]
[1758294527979,1.67714865,115640.0,115630.0,0.02604]
[1758294528981,0.82758865,115640.0,115630.0,0.02604]
[1758294529173,1.67630865,115640.0,115630.0,0.02604]
[1758294529373,1.67622865,115640.0,115630.0,0.02596]
[1758294530084,0.82750865,115640.0,115630.0,0.04886]
[1758294530477,1.67622865,115640.0,115630.0,0.04886]
[1758294530675,0.82750865,115640.0,115630.0,0.04886]
[1758294530878,1.67622865,115640.0,115630.0,0.04886]
[1758294531072,1.67622865,115640.0,115630.0,0.02596]
[1758294531280,1.3368827,115640.0,115630.0,0.04886]
[1758294531482,1.67622865,115640.0,115630.0,0.04886]
[1758294531984,1.67622865,115640.0,115630.0,0.02596]
[1758294533180,1.3368827,115640.0,115630.0,0.02596]
[1758294533484,1.67622865,115640.0,115630.0,0.02596]
[1758294533877,1.3368827,115640.0,115630.0,0.02596]
[1758294534080,1.67622865,115640.0,115630.0,0.02596]
[1758294535086,0.82750865,115640.0,115630.0,0.02596]
[1758294535387,1.67622865,115640.0,115630.0,0.02596]
[1758294536587,1.3368827,115640.0,115630.0,0.02596]
[1758294536779,1.67622865,115640.0,115630.0,0.02596]
[1758294537285,1.3368827,115640.0,115630.0,0.02596]
[1758294537488,1.67622865,115640.0,115630.0,0.02596]
[1758294538282,1.3368827,115640.0,115630.0,0.02596]
[1758294538484,1.67622865,115640.0,115630.0,0.02596]
[1758294538683,1.3368827,115640.0,115630.0,0.02596]
[1758294539083,1.67622865,115640.0,115630.0,0.02596]
[1758294539690,1.67618865,115640.0,115630.0,0.02596]
[1758294539886,0.82750865,115640.0,115630.0,0.04886]
[1758294540187,0.40173,115640.0,115630.0,0.3853005]
[1758294540491,1.21444,115640.0,115630.0,0.73753645]
[1758294540691,0.85364,115640.0,115630.0,0.73753645]
[1758294540895,0.005,115640.0,115630.0,1.09833645]
[1758294541482,0.02605,115640.0,115630.0,0.7589905]
[1758294541988,0.005,115640.0,115630.0,1.09833645]
[1758294542387,0.005,115640.0,115630.0,0.7589905]
[1758294542581,0.02605,115640.0,115630.0,0.7589905]
[1758294542782,0.02605,115640.0,115630.0,1.09833645]
[1758294543591,0.02605,115640.0,115630.0,0.7589905]
[1758294543984,0.02597,115640.0,115630.0,1.09825645]
[1758294544490,0.126003,115640.0,115630.0,1.09825645]
[1758294544696,0.126003,115640.0,115630.0,0.7589105]
[1758294544887,0.37891595,115640.0,115630.0,0.4960205]
[1758294545086,0.46534895,115640.0,115630.0,0.4960205]
[1758294545395,0.126003,115640.0,115630.0,0.83536645]
[1758294545594,0.02597,115640.0,115630.0,0.84825645]
[1758294545794,0.02597,115640.0,115630.0,0.7589105]
[1758294545983,0.02597,115640.0,115630.0,1.09825645]
[1758294546187,0.112403,115640.0,115630.0,0.7589105]
[1758294546490,0.112403,115640.0,115630.0,1.09825645]
[1758294546893,0.02597,115640.0,115630.0,1.09825645]
[1758294547094,0.00492,115640.0,115630.0,1.09825645]
[1758294547798,0.00492,115640.0,115630.0,1.94673645]
[1758294547998,0.88298,115660.0,115650.0,0.46045145]
[1758294548298,0.02105,115660.0,115650.0,0.46045145]
[1758294548495,1.330151,115670.0,115660.0,0.108208]
[1758294548700,1.24374,115670.0,115660.0,0.108208]
[1758294548903,1.58308595,115670.0,115660.0,0.121098]
[1758294549399,1.3301506,115670.0,115660.0,0.108208]
[1758294549595,1.66949655,115670.0,115660.0,0.108208]
[1758294549994,1.58308595,115670.0,115660.0,0.108208]
[1758294550191,1.66949655,115670.0,115660.0,0.108208]
[1758294550388,1.67349655,115670.0,115660.0,0.108208]
[1758294550592,1.3341506,115670.0,115660.0,0.108208]
[1758294550893,1.67349655,115670.0,115660.0,0.17791546]
[1758294551095,1.66904655,115670.0,115660.0,0.19480546]
[1758294551300,1.58263595,115670.0,115660.0,0.19480546]
[1758294551599,0.39485,115670.0,115660.0,0.5546581]
[1758294551799,0.03405,115670.0,115660.0,0.5546581]
[1758294551994,0.013,115670.0,115660.0,0.5546581]
[1758294552196,0.1204608,115670.0,115660.0,0.5546581]
[1758294552398,0.4948608,115670.0,115660.0,0.5546581]
[1758294552588,0.4948608,115670.0,115660.0,0.21531215]
[1758294552794,0.39485,115670.0,115660.0,0.5546581]
[1758294553601,0.4812608,115670.0,115660.0,0.5546581]
[1758294553803,0.83400234,115670.0,115660.0,0.20242235]
[1758294554793,0.4948608,115670.0,115660.0,0.20242235]
[1758294555003,0.83400234,115670.0,115660.0,0.45514569]
[1758294555598,0.83400234,115670.0,115660.0,0.54156389]
[1758294555998,1.08400234,115670.0,115660.0,0.11600415]
[1758294556200,1.08400234,115670.0,115660.0,0.09421415]
[1758294556506,1.93216234,115670.0,115660.0,0.09421415]
[1758294557002,2.27130388,115670.0,115660.0,0.09421415]
[1758294557197,1.5930208,115670.0,115660.0,0.09421415]
[1758294557402,2.27130388,115670.0,115660.0,0.09421415]
[1758294557598,1.93216234,115670.0,115660.0,0.09421415]
[1758294558199,2.27130388,115670.0,115660.0,0.09421415]
[1758294559299,2.27122388,115670.0,115660.0,0.09421415]
[1758294560901,2.27122388,115670.0,115660.0,0.07370746]
[1758294561306,1.5929408,115670.0,115660.0,0.07370746]
[1758294561707,2.27122388,115670.0,115660.0,0.07370746]
[1758294562011,1.42306388,115670.0,115660.0,0.07370746]
[1758294562209,2.27106388,115670.0,115660.0,0.07370746]
[1758294562906,2.27106388,115670.0,115660.0,0.004]
[1758294563610,2.27102388,115670.0,115660.0,0.004]
[1758294564615,1.3427008,115670.0,115660.0,0.004]
[1758294564799,1.68184234,115670.0,115660.0,0.004]
[1758294565812,2.02098388,115670.0,115660.0,0.004]
[1758294566416,1.17306388,115670.0,115660.0,0.004]
[1758294567014,1.3426608,115670.0,115660.0,0.004]
[1758294567314,1.3426608,115670.0,115660.0,0.07264286]
[1758294567516,1.68180234,115670.0,115660.0,0.07264286]
[1758294568709,1.68172234,115670.0,115660.0,0.09493286]
[1758294569311,1.68172234,115670.0,115660.0,0.18135166]
[1758294569503,1.68172234,115670.0,115660.0,0.09493286]
[1758294570312,0.83392234,115670.0,115660.0,0.4340744]
[1758294570517,1.3425808,115670.0,115660.0,0.09493286]
[1758294570705,1.3425808,115670.0,115660.0,0.18135166]
[1758294570911,1.68172234,115670.0,115660.0,0.5204932]
[1758294571112,0.83392234,115670.0,115660.0,0.5204932]
[1758294571307,1.3425008,115670.0,115660.0,0.7704932]
[1758294571509,1.68164234,115670.0,115660.0,0.7704932]
[1758294571816,0.40837,115670.0,115660.0,1.12252474]
[1758294572023,1.24245,115670.0,115660.0,1.12252474]
[1758294572311,0.01292,115670.0,115660.0,1.12252474]
[1758294572512,0.8606,115670.0,115660.0,1.12252474]
[1758294572913,0.01292,115670.0,115660.0,1.12252474]
[1758294576116,0.1348013,115670.0,115660.0,0.19424166]
[1758294576417,0.47394284,115670.0,115660.0,0.5204932]
[1758294576814,0.83474284,115670.0,115660.0,0.5204932]
[1758294577824,0.83474284,115670.0,115660.0,0.18135166]
[1758294578012,0.83474284,115670.0,115660.0,0.5204932]
[1758294578323,0.83474284,115670.0,115660.0,0.18135166]
[1758294579018,0.83474284,115670.0,115660.0,0.5204932]
[1758294579214,1.08474284,115670.0,115660.0,0.15906166]
[1758294579523,0.83474284,115670.0,115660.0,0.18135166]
[1758294579819,0.83474284,115670.0,115660.0,0.09493286]
[1758294580411,0.83474284,115670.0,115660.0,0.18135166]
[1758294580623,0.83474284,115670.0,115660.0,0.09493286]
[1758294580925,0.83474284,115670.0,115660.0,0.18135166]
[1758294581623,0.83474284,115670.0,115660.0,0.07264286]
[1758294582126,0.83474284,115670.0,115660.0,0.15906166]
[1758294582823,1.3427613,115670.0,115660.0,0.07264286]
[1758294583122,1.68190284,115670.0,115660.0,0.07264286]
[1758294583421,1.68190284,115670.0,115660.0,0.15906166]
[1758294583612,0.83474284,115670.0,115660.0,0.18135166]
[1758294584015,1.68182284,115670.0,115660.0,0.15906166]
[1758294584323,1.68182284,115670.0,115660.0,0.18135166]
[1758294585316,1.3426013,115670.0,115660.0,0.18135166]
[1758294585523,1.68174284,115670.0,115660.0,0.18135166]
[1758294586525,0.74833154,115670.0,115660.0,0.18135166]
[1758294586723,1.68166284,115670.0,115660.0,0.07264286]
[1758294586918,1.68166284,115670.0,115660.0,0.18135166]
[1758294587225,1.68166284,115670.0,115660.0,0.15906166]
[1758294587428,1.68166284,115670.0,115660.0,0.07264286]
[1758294587616,2.02080438,115670.0,115660.0,0.07264286]
[1758294587816,1.68166284,115670.0,115660.0,0.07264286]
[1758294588310,1.3425213,115670.0,115660.0,0.07264286]
[1758294588513,1.68166284,115670.0,115660.0,0.07264286]
[1758294588921,1.68158284,115670.0,115660.0,0.15906166]
[1758294589126,1.68158284,115670.0,115660.0,0.18135166]
[1758294589317,1.68158284,115670.0,115660.0,0.07264286]
[1758294590011,2.02072438,115670.0,115660.0,0.07264286]
[1758294590212,1.3424413,115670.0,115660.0,0.07264286]
[1758294590524,1.68158284,115670.0,115660.0,0.07264286]
[1758294590826,0.83474284,115670.0,115660.0,0.07264286]
[1758294591028,1.68154284,115670.0,115660.0,0.07264286]
[1758294591326,0.83474284,115670.0,115660.0,0.15906166]
[1758294591618,1.68146284,115670.0,115660.0,0.15906166]
[1758294591819,0.83474284,115670.0,115660.0,0.18135166]
[1758294592022,1.3423213,115670.0,115660.0,0.5204932]
[1758294592225,1.3423213,115670.0,115660.0,0.87989266]
[1758294592728,0.40919,115670.0,115660.0,0.54075112]
[1758294592912,1.25587,115670.0,115660.0,1.14278266]
[1758294593112,1.24306,115670.0,115660.0,1.14278266]
[1758294593618,1.3424413,115670.0,115660.0,0.80364112]
[1758294593920,1.25599,115670.0,115660.0,1.14278266]
[1758294594119,1.3424013,115670.0,115660.0,1.14278266]
[1758294594319,1.24302,115670.0,115660.0,0.80364112]
[1758294594927,1.58216154,115670.0,115660.0,0.80364112]
[1758294595130,1.66857284,115670.0,115660.0,0.80364112]
[1758294595316,1.58216154,115670.0,115660.0,0.80364112]
[1758294595523,1.24302,115670.0,115660.0,1.14278266]
[1758294595822,1.3294313,115670.0,115660.0,1.14278266]
[1758294596619,1.24302,115670.0,115660.0,1.14278266]
[1758294596821,1.3294313,115670.0,115660.0,1.14278266]
[1758294597428,1.3293113,115670.0,115660.0,1.14278266]
[1758294597818,1.2429,115670.0,115660.0,1.14278266]
[1758294598020,0.01292,115670.0,115660.0,1.14278266]
[1758294600048,0.01292,115670.0,115660.0,1.12252474]
[1758294600242,0.37377,115710.0,115690.0,0.1219464]
[1758294600537,1.3280514,115710.0,115700.0,0.80022198]
[1758294600727,1.66719294,115710.0,115700.0,0.44819044]
[1758294601335,0.32606705,115710.0,115700.0,0.80045198]
[1758294601527,1.17230705,115710.0,115700.0,0.19207342]
[1758294601927,1.17230705,115710.0,115700.0,0.8703565]
[1758294602134,1.25868845,115710.0,115700.0,0.8703565]
[1758294602525,1.63460999,115710.0,115700.0,0.55898414]
[1758294602726,1.64360999,115710.0,115700.0,0.2198426]
[1758294602923,1.64360999,115710.0,115700.0,0.2067226]
[1758294603228,1.64360999,115710.0,115700.0,0.45947524]
[1758294603429,1.63460999,115710.0,115700.0,0.54586414]
[1758294603638,1.64360999,115710.0,115700.0,0.2077226]
[1758294603934,2.23275153,115710.0,115700.0,0.0986737]
[1758294604134,1.89352999,115710.0,115700.0,0.0986737]
[1758294604631,1.87252999,115710.0,115700.0,0.1006737]
[1758294605035,1.87252999,115710.0,115700.0,0.07490452]
[1758294605732,2.20267153,115710.0,115700.0,0.07390452]
[1758294605935,2.22351697,115710.0,115700.0,0.07490452]
[1758294607334,2.22351697,115710.0,115700.0,0.005]
[1758294608527,2.24600443,115710.0,115700.0,0.001]
[1758294608726,2.24900443,115710.0,115700.0,0.004]
[1758294609131,2.24600443,115710.0,115700.0,0.003]
[1758294609332,2.24600443,115710.0,115700.0,0.004]
[1758294609333,2.24800443,115710.0,115700.0,0.004]
[1758294609642,1.37627697,115710.0,115700.0,0.004]
[1758294609942,2.22195697,115710.0,115700.0,0.004]
[1758294610240,0.1207963,115690.0,115680.0,0.01991729]
[1758294610441,0.1208112,115670.0,115660.0,0.09130286]
[1758294610632,1.66635274,115670.0,115660.0,0.09130286]
[1758294610833,0.82075274,115670.0,115660.0,0.09130286]
[1758294611143,0.82075274,115670.0,115660.0,0.5168631]
[1758294611532,1.66631274,115670.0,115660.0,0.5168631]
[1758294611929,1.66631274,115670.0,115660.0,0.17772156]
[1758294612129,1.66631274,115670.0,115660.0,0.5168631]
[1758294612337,1.66931274,115670.0,115660.0,0.5258631]
[1758294612939,1.66931274,115670.0,115660.0,0.4424444]
[1758294612940,1.67031274,115670.0,115660.0,0.4424444]
[1758294613138,1.67031274,115670.0,115660.0,0.12917088]
[1758294613441,0.82475274,115670.0,115660.0,0.46831242]
[1758294613639,1.3310912,115670.0,115660.0,0.55473112]
[1758294613844,1.67024679,115670.0,115660.0,0.21558958]
[1758294614144,1.67024679,115670.0,115660.0,0.12917088]
[1758294614441,1.67024679,115670.0,115660.0,0.21558958]
[1758294615050,1.67024679,115670.0,115660.0,0.12917088]
[1758294615229,0.4856112,115670.0,115660.0,0.12917088]
[1758294615427,1.3310112,115670.0,115660.0,0.12917088]
[1758294615634,0.82476679,115670.0,115660.0,0.21558958]
[1758294615833,1.67016679,115670.0,115660.0,0.21558958]
[1758294616036,1.67016679,115670.0,115660.0,0.12917088]
[1758294616541,2.03096679,115670.0,115660.0,0.08064286]
[1758294617235,2.03088679,115670.0,115660.0,0.08064286]
[1758294617843,1.18556679,115670.0,115660.0,0.08064286]
[1758294618141,2.03084679,115670.0,115660.0,0.08064286]
[1758294619136,2.03080679,115670.0,115660.0,0.08056286]
[1758294619441,2.03076679,115670.0,115660.0,0.08048286]
[1758294620345,1.18556679,115670.0,115660.0,0.08048286]
[1758294620546,2.03072679,115670.0,115660.0,0.08048286]
[1758294620737,1.18556679,115670.0,115660.0,0.08048286]
[1758294620945,2.03072679,115670.0,115660.0,0.08048286]
[1758294621844,1.18556679,115670.0,115660.0,0.08048286]
[1758294622144,2.03064679,115670.0,115660.0,0.08048286]
[1758294622548,1.18556679,115670.0,115660.0,0.08048286]
[1758294622748,2.03060679,115670.0,115660.0,0.08048286]
[1758294623948,2.03060679,115670.0,115660.0,0.08497286]
[1758294625050,1.18556679,115670.0,115660.0,0.08497286]
[1758294625250,2.03048679,115670.0,115660.0,0.08497286]
[1758294626551,2.29797259,115670.0,115660.0,0.01649]
[1758294626850,2.32408976,115670.0,115660.0,0.01649]
[1758294627245,1.47916976,115670.0,115660.0,0.01649]
[1758294627451,2.32396976,115670.0,115660.0,0.01649]
[1758294628051,1.45305259,115670.0,115660.0,0.01649]
[1758294628450,2.32443301,115670.0,115660.0,0.01649]
[1758294628639,2.30577259,115670.0,115660.0,0.00849]
[1758294629354,2.30577259,115670.0,115660.0,0.00749]
[1758294629654,2.30573259,115670.0,115660.0,0.00849]
[1758294629847,2.29673259,115670.0,115660.0,0.00549]
[1758294630056,2.30373259,115670.0,115660.0,0.00849]
[1758294630548,2.32923766,115670.0,115660.0,0.00849]
[1758294630752,2.32923766,115670.0,115660.0,0.00952396]
[1758294630958,4.15043766,115670.0,115660.0,0.00952396]